[Event "Early-Titled-Tuesday-Blitz-June-18-2024"]
[Site "Chess.com"]
[Date "2024.06.18"]
[Round "2"]
[White "Brown_Bear_MGL"]
[Black "lucena125"]
[Result "1-0"]
[WhiteElo "2502"]
[BlackElo "2249"]
[TimeControl "180+1"]
[EndTime "8:18:43 PDT"]
[Termination "Brown_Bear_MGL won by resignation"]

1. b3 {[%clk 0:03:00.9]} 1... e5 {[%clk 0:02:48.4]} 2. Bb2 {[%clk 0:02:58.7]}
2... Nc6 {[%clk 0:02:45.8]} 3. c4 {[%clk 0:02:58.5]} 3... g6 {[%clk 0:02:43.2]}
4. e3 {[%clk 0:02:50.2]} 4... Bg7 {[%clk 0:02:43.2]} 5. Nf3 {[%clk 0:02:47.8]}
5... Nge7 {[%clk 0:02:42.7]} 6. Be2 {[%clk 0:02:39]} 6... O-O {[%clk 0:02:41.2]}
7. d4 {[%clk 0:02:22.9]} 7... exd4 {[%clk 0:02:36]} 8. Nxd4 {[%clk 0:02:20.7]}
8... d5 {[%clk 0:02:30.7]} 9. Nxc6 {[%clk 0:02:19.5]} 9... bxc6 {[%clk
0:02:22.9]} 10. Bxg7 {[%clk 0:02:19.2]} 10... Kxg7 {[%clk 0:02:22.9]} 11. Nc3
{[%clk 0:02:19.3]} 11... Be6 {[%clk 0:02:10.2]} 12. cxd5 {[%clk 0:02:03.6]}
12... cxd5 {[%clk 0:02:04.4]} 13. Na4 {[%clk 0:01:58.4]} 13... c6 {[%clk
0:02:02.9]} 14. O-O {[%clk 0:01:55.3]} 14... Ng8 {[%clk 0:01:21.1]} 15. Rc1
{[%clk 0:01:51.5]} 15... Qd6 {[%clk 0:01:21.4]} 16. Qd4+ {[%clk 0:01:40.5]}
16... f6 {[%clk 0:01:14.9]} 17. Rc3 {[%clk 0:01:32.7]} 17... Ne7 {[%clk
0:01:08.5]} 18. Bd3 {[%clk 0:01:29.2]} 18... Rfc8 {[%clk 0:01:00.3]} 19. Rfc1
{[%clk 0:01:29]} 19... Qe5 {[%clk 0:01:00.1]} 20. Nc5 {[%clk 0:01:23.9]} 20...
Kf7 {[%clk 0:00:59.1]} 21. Qh4 {[%clk 0:01:19.6]} 21... Kg7 {[%clk 0:00:42.5]}
22. Qa4 {[%clk 0:01:01]} 22... Bf5 {[%clk 0:00:42.3]} 23. Ba6 {[%clk 0:00:54.7]}
23... Rc7 {[%clk 0:00:39.4]} 24. Qb4 {[%clk 0:00:48.9]} 24... Bc8 {[%clk
0:00:34]} 25. Bd3 {[%clk 0:00:36.4]} 25... Bf5 {[%clk 0:00:33.5]} 26. Be2 {[%clk
0:00:33.4]} 26... Rcc8 {[%clk 0:00:29.4]} 27. Ba6 {[%clk 0:00:32.7]} 27... Rcb8
{[%clk 0:00:28.4]} 28. Qa4 {[%clk 0:00:31.5]} 28... Rb6 {[%clk 0:00:28.7]} 29.
f4 {[%clk 0:00:24]} 29... Qd6 {[%clk 0:00:27.9]} 30. Kf2 {[%clk 0:00:23.7]}
30... Bd7 {[%clk 0:00:20.8]} 31. Bd3 {[%clk 0:00:23.1]} 31... Nf5 {[%clk
0:00:20.8]} 32. Bxf5 {[%clk 0:00:22.8]} 32... Bxf5 {[%clk 0:00:20.1]} 33. Qd4
{[%clk 0:00:22.8]} 33... Re8 {[%clk 0:00:20.4]} 34. Na4 {[%clk 0:00:20.7]} 34...
Rbb8 {[%clk 0:00:19.4]} 35. Rxc6 {[%clk 0:00:20.6]} 35... Qd7 {[%clk 0:00:18.8]}
36. Rc7 {[%clk 0:00:20.5]} 36... Re7 {[%clk 0:00:19.3]} 37. Rxd7 {[%clk
0:00:20.4]} 37... Rxd7 {[%clk 0:00:20.2]} 38. Rc5 {[%clk 0:00:20.3]} 38... Rbd8
{[%clk 0:00:20.6]} 39. Nc3 {[%clk 0:00:19.6]} 39... Be4 {[%clk 0:00:20.7]} 40.
Nxe4 {[%clk 0:00:17.8]} 40... dxe4 {[%clk 0:00:21.6]} 41. Qxe4 {[%clk
0:00:18.3]} 41... Rd2+ {[%clk 0:00:22.3]} 42. Kg3 {[%clk 0:00:18.2]} 42... h5
{[%clk 0:00:23.1]} 43. h4 {[%clk 0:00:17.8]} 43... Kh6 {[%clk 0:00:23.6]} 44.
Rc6 {[%clk 0:00:16.5]} 44... R2d6 {[%clk 0:00:22.7]} 45. Rxd6 {[%clk 0:00:16]}
45... Rxd6 {[%clk 0:00:23.6]} 46. Qe7 {[%clk 0:00:16.5]} 46... Ra6 {[%clk
0:00:23.8]} 47. Qf8+ {[%clk 0:00:15.8]} 47... Kh7 {[%clk 0:00:24.6]} 48. Qf7+
{[%clk 0:00:15.3]} 48... Kh6 {[%clk 0:00:23.2]} 49. b4 {[%clk 0:00:15.1]} 49...
Ra4 {[%clk 0:00:22.7]} 50. Qxf6 {[%clk 0:00:14.2]} 50... Rxb4 {[%clk 0:00:22.8]}
51. Qf8+ {[%clk 0:00:14.5]} 51... Kh7 {[%clk 0:00:22.9]} 52. Qxb4 {[%clk
0:00:15.4]} 1-0

[Event "Early-Titled-Tuesday-Blitz-June-18-2024"]
[Site "Chess.com"]
[Date "2024.06.18"]
[Round "2"]
[White "Qvalda"]
[Black "JAN2404"]
[Result "1-0"]
[WhiteElo "2452"]
[BlackElo "2023"]
[TimeControl "180+1"]
[EndTime "8:18:43 PDT"]
[Termination "Qvalda won by resignation"]

1. d4 {[%clk 0:03:00.9]} 1... Nf6 {[%clk 0:02:56.4]} 2. c4 {[%clk 0:03:00.7]}
2... g6 {[%clk 0:02:55.6]} 3. Nf3 {[%clk 0:02:59.8]} 3... Bg7 {[%clk 0:02:56]}
4. e3 {[%clk 0:03:00.4]} 4... O-O {[%clk 0:02:55.3]} 5. Be2 {[%clk 0:03:00.9]}
5... d6 {[%clk 0:02:51.9]} 6. Nc3 {[%clk 0:02:59.9]} 6... c6 {[%clk 0:02:47]} 7.
b4 {[%clk 0:02:59.4]} 7... Bf5 {[%clk 0:02:44.8]} 8. Qb3 {[%clk 0:02:51.1]} 8...
Nbd7 {[%clk 0:02:29.1]} 9. Bb2 {[%clk 0:02:50.5]} 9... a5 {[%clk 0:02:24.9]} 10.
b5 {[%clk 0:02:37.8]} 10... Ne4 {[%clk 0:02:23]} 11. a4 {[%clk 0:02:12]} 11...
c5 {[%clk 0:02:08.4]} 12. Nxe4 {[%clk 0:01:45.1]} 12... Bxe4 {[%clk 0:02:06.3]}
13. Nd2 {[%clk 0:01:44.4]} 13... Bxg2 {[%clk 0:01:56.5]} 14. Rg1 {[%clk
0:01:41.4]} 14... Bh3 {[%clk 0:01:56.3]} 15. Rg3 {[%clk 0:01:40.5]} 15... Bf5
{[%clk 0:00:51.6]} 16. e4 {[%clk 0:01:39.3]} 16... cxd4 {[%clk 0:00:29.5]} 17.
exf5 {[%clk 0:01:37.4]} 17... Nc5 {[%clk 0:00:29.6]} 18. Qf3 {[%clk 0:01:06.4]}
18... Qe8 {[%clk 0:00:22.3]} 19. Ne4 {[%clk 0:00:46.4]} 19... Rc8 {[%clk
0:00:16]} 20. Nxc5 {[%clk 0:00:42.2]} 20... Rxc5 {[%clk 0:00:14.6]} 21. Bd3
{[%clk 0:00:40]} 21... e5 {[%clk 0:00:14.1]} 22. fxe6 {[%clk 0:00:27.1]} 22...
fxe6 {[%clk 0:00:12.7]} 23. Qxb7 {[%clk 0:00:24.4]} 23... e5 {[%clk 0:00:12.2]}
24. Kf1 {[%clk 0:00:17.8]} 24... Qe6 {[%clk 0:00:10.5]} 25. Qg2 {[%clk
0:00:16.9]} 25... Qf7 {[%clk 0:00:05.6]} 26. Kg1 {[%clk 0:00:16.3]} 26... Bh6
{[%clk 0:00:04.7]} 27. Re1 {[%clk 0:00:15.9]} 27... Bf4 {[%clk 0:00:04.3]} 28.
Rg4 {[%clk 0:00:14.7]} 28... Bd2 {[%clk 0:00:04]} 29. Re2 {[%clk 0:00:14.5]}
29... Bc3 {[%clk 0:00:04.6]} 30. Bc1 {[%clk 0:00:13.2]} 30... d5 {[%clk
0:00:04.1]} 31. cxd5 {[%clk 0:00:11.7]} 31... Bb4 {[%clk 0:00:03.3]} 32. Bh6
{[%clk 0:00:08.9]} 32... Rfc8 {[%clk 0:00:02.1]} 33. h4 {[%clk 0:00:08.3]} 33...
Rc2 {[%clk 0:00:01.6]} 34. Bxc2 {[%clk 0:00:07.9]} 34... Rc3 {[%clk 0:00:01.6]}
35. Rg3 {[%clk 0:00:07.2]} 35... d3 {[%clk 0:00:01.8]} 36. Rxd3 {[%clk
0:00:06.8]} 36... Rxc2 {[%clk 0:00:02.1]} 37. Rxc2 {[%clk 0:00:06.4]} 37... Qf5
{[%clk 0:00:02.1]} 38. Qf3 {[%clk 0:00:05.5]} 38... e4 {[%clk 0:00:01.3]} 39.
Qxf5 {[%clk 0:00:05.1]} 39... gxf5 {[%clk 0:00:02.2]} 40. Rg3+ {[%clk
0:00:05.4]} 40... Kf7 {[%clk 0:00:01.7]} 41. Rc6 {[%clk 0:00:06.3]} 41... Bc3
{[%clk 0:00:01.2]} 42. Be3 {[%clk 0:00:06.2]} 42... Be5 {[%clk 0:00:01.3]} 43.
Rg5 {[%clk 0:00:06.3]} 43... f4 {[%clk 0:00:01.9]} 44. Rxe5 {[%clk 0:00:06.2]}
44... fxe3 {[%clk 0:00:02.8]} 45. fxe3 {[%clk 0:00:06]} 1-0

[Event "Early-Titled-Tuesday-Blitz-June-18-2024"]
[Site "Chess.com"]
[Date "2024.06.18"]
[Round "2"]
[White "OparinGrigoriy"]
[Black "Feegus"]
[Result "0-1"]
[WhiteElo "3056"]
[BlackElo "2684"]
[TimeControl "180+1"]
[EndTime "8:18:45 PDT"]
[Termination "Feegus won by checkmate"]

1. c4 {[%clk 0:03:00.9]} 1... e6 {[%clk 0:02:59.6]} 2. Nc3 {[%clk 0:03:00.9]}
2... d5 {[%clk 0:02:59.7]} 3. d4 {[%clk 0:03:01.3]} 3... h6 {[%clk 0:02:58.9]}
4. Nf3 {[%clk 0:02:59.1]} 4... Nf6 {[%clk 0:02:58.8]} 5. cxd5 {[%clk 0:02:56.1]}
5... exd5 {[%clk 0:02:59.7]} 6. Bf4 {[%clk 0:02:54.9]} 6... Bd6 {[%clk
0:03:00.3]} 7. Bg3 {[%clk 0:02:54.8]} 7... O-O {[%clk 0:02:59.8]} 8. e3 {[%clk
0:02:55.2]} 8... Bxg3 {[%clk 0:03:00.1]} 9. hxg3 {[%clk 0:02:55.2]} 9... c6
{[%clk 0:03:00.6]} 10. Bd3 {[%clk 0:02:55.2]} 10... Qe7 {[%clk 0:03:00.8]} 11.
Qc2 {[%clk 0:02:55.4]} 11... Re8 {[%clk 0:02:59.9]} 12. O-O-O {[%clk 0:02:48.7]}
12... Nbd7 {[%clk 0:02:55.3]} 13. Rh4 {[%clk 0:02:48.8]} 13... b5 {[%clk
0:02:51.8]} 14. Kb1 {[%clk 0:02:40.4]} 14... a5 {[%clk 0:02:51]} 15. g4 {[%clk
0:02:37]} 15... Ne4 {[%clk 0:02:49.3]} 16. Rdh1 {[%clk 0:02:32.8]} 16... a4
{[%clk 0:02:38.5]} 17. a3 {[%clk 0:02:04.3]} 17... b4 {[%clk 0:02:28.7]} 18.
Nxa4 {[%clk 0:02:03.5]} 18... bxa3 {[%clk 0:02:25.3]} 19. b3 {[%clk 0:02:03]}
19... Ba6 {[%clk 0:01:53.9]} 20. Bxa6 {[%clk 0:01:53.2]} 20... Rxa6 {[%clk
0:01:53.9]} 21. Ka1 {[%clk 0:01:50.8]} 21... Rb8 {[%clk 0:01:49.2]} 22. g5
{[%clk 0:01:40.9]} 22... Rxa4 {[%clk 0:01:33.6]} 23. gxh6 {[%clk 0:01:06.2]}
23... g5 {[%clk 0:00:59]} 24. h7+ {[%clk 0:01:06]} 24... Kh8 {[%clk 0:00:59]}
25. Nxg5 {[%clk 0:01:05.5]} 25... Rab4 {[%clk 0:00:32.3]} 26. Nxe4 {[%clk
0:01:05.5]} 26... dxe4 {[%clk 0:00:24.8]} 27. Rxe4 {[%clk 0:01:05]} 27... Qf6
{[%clk 0:00:22.4]} 28. Ka2 {[%clk 0:00:43.1]} 28... c5 {[%clk 0:00:13.2]} 29.
Rf4 {[%clk 0:00:19.3]} 29... Qg7 {[%clk 0:00:12.4]} 30. Rb1 {[%clk 0:00:12.5]}
30... c4 {[%clk 0:00:12.5]} 31. Qc3 {[%clk 0:00:05]} 31... cxb3+ {[%clk
0:00:12]} 32. Kxa3 {[%clk 0:00:05.5]} 32... b2 {[%clk 0:00:07.2]} 33. Qxb4
{[%clk 0:00:04.1]} 33... Rxb4 {[%clk 0:00:07.3]} 34. Kxb4 {[%clk 0:00:05]} 34...
Qxh7 {[%clk 0:00:06.3]} 35. Rxb2 {[%clk 0:00:05.2]} 35... Qd3 {[%clk 0:00:05.1]}
36. Rxf7 {[%clk 0:00:02.8]} 36... Nb6 {[%clk 0:00:02.4]} 37. Kc5 {[%clk
0:00:03.2]} 37... Na4+ {[%clk 0:00:02.6]} 38. Kd6 {[%clk 0:00:03.6]} 38... Nxb2
{[%clk 0:00:03.5]} 39. g4 {[%clk 0:00:03.8]} 39... Nc4+ {[%clk 0:00:03.2]} 40.
Ke7 {[%clk 0:00:04]} 40... Qe4+ {[%clk 0:00:03.4]} 41. Kf8 {[%clk 0:00:02.3]}
41... Nd6 {[%clk 0:00:02.2]} 42. Re7 {[%clk 0:00:01]} 42... Qf3+ {[%clk
0:00:02.2]} 43. Rf7 {[%clk 0:00:01.4]} 43... Qxf7# {[%clk 0:00:02.4]} 0-1

[Event "Early-Titled-Tuesday-Blitz-June-18-2024"]
[Site "Chess.com"]
[Date "2024.06.18"]
[Round "2"]
[White "MaxLeto"]
[Black "Masterisback04"]
[Result "1-0"]
[WhiteElo "2465"]
[BlackElo "2120"]
[TimeControl "180+1"]
[EndTime "8:18:46 PDT"]
[Termination "MaxLeto won on time"]

1. a3 {[%clk 0:03:00.9]} 1... Nf6 {[%clk 0:02:57.9]} 2. b3 {[%clk 0:03:01.8]}
2... g6 {[%clk 0:02:57]} 3. c3 {[%clk 0:03:02.7]} 3... Bg7 {[%clk 0:02:57.3]} 4.
d3 {[%clk 0:03:03.6]} 4... O-O {[%clk 0:02:57.3]} 5. e3 {[%clk 0:03:04.5]} 5...
e5 {[%clk 0:02:57.2]} 6. f3 {[%clk 0:03:05.4]} 6... d5 {[%clk 0:02:57.3]} 7. g3
{[%clk 0:03:06.3]} 7... c5 {[%clk 0:02:57]} 8. h3 {[%clk 0:03:07.2]} 8... Nfd7
{[%clk 0:02:57.4]} 9. Bg2 {[%clk 0:03:05]} 9... f5 {[%clk 0:02:57.8]} 10. Ne2
{[%clk 0:03:04.5]} 10... f4 {[%clk 0:02:55.7]} 11. exf4 {[%clk 0:03:03.7]} 11...
exf4 {[%clk 0:02:55.9]} 12. Bxf4 {[%clk 0:03:04.3]} 12... Nc6 {[%clk 0:02:52.1]}
13. Qc2 {[%clk 0:02:54.3]} 13... Nde5 {[%clk 0:02:50.9]} 14. Bxe5 {[%clk
0:02:20.5]} 14... Nxe5 {[%clk 0:02:51.8]} 15. f4 {[%clk 0:02:19.9]} 15... Nc6
{[%clk 0:02:49.7]} 16. O-O {[%clk 0:02:08.1]} 16... Re8 {[%clk 0:02:47.7]} 17.
Re1 {[%clk 0:02:03.1]} 17... Bf5 {[%clk 0:02:41.2]} 18. g4 {[%clk 0:01:41.4]}
18... Be6 {[%clk 0:02:41]} 19. Nd2 {[%clk 0:01:41.5]} 19... Qh4 {[%clk
0:02:38.5]} 20. Nf3 {[%clk 0:01:41.1]} 20... Qd8 {[%clk 0:02:31.2]} 21. Qd2
{[%clk 0:01:27.3]} 21... Kh8 {[%clk 0:02:23.2]} 22. Ng3 {[%clk 0:01:21.8]} 22...
Qd6 {[%clk 0:02:22.8]} 23. Rf1 {[%clk 0:01:02.9]} 23... Bg8 {[%clk 0:02:22.8]}
24. Rae1 {[%clk 0:00:59.9]} 24... Rf8 {[%clk 0:02:21.8]} 25. Ne2 {[%clk
0:00:43.2]} 25... Rae8 {[%clk 0:02:20]} 26. b4 {[%clk 0:00:41.1]} 26... b6
{[%clk 0:02:10.8]} 27. d4 {[%clk 0:00:39.1]} 27... a5 {[%clk 0:02:07]} 28. b5
{[%clk 0:00:34.8]} 28... Na7 {[%clk 0:02:03.8]} 29. a4 {[%clk 0:00:34.4]} 29...
Rc8 {[%clk 0:01:26.6]} 30. Ne5 {[%clk 0:00:33.7]} 30... Rc7 {[%clk 0:01:23.5]}
31. Nc1 {[%clk 0:00:20.6]} 31... cxd4 {[%clk 0:01:23]} 32. cxd4 {[%clk
0:00:20.2]} 32... Qa3 {[%clk 0:01:16.7]} 33. Qa2 {[%clk 0:00:12.4]} 33... Qb4
{[%clk 0:01:08]} 34. Ne2 {[%clk 0:00:06.5]} 34... Rfc8 {[%clk 0:01:03.8]} 35.
Rc1 {[%clk 0:00:07]} 35... Rxc1 {[%clk 0:00:57.3]} 36. Rxc1 {[%clk 0:00:07.9]}
36... Rxc1+ {[%clk 0:00:57.5]} 37. Nxc1 {[%clk 0:00:08.8]} 37... Qe1+ {[%clk
0:00:58]} 38. Kh2 {[%clk 0:00:04.7]} 38... Qxc1 {[%clk 0:00:58.2]} 39. Bxd5
{[%clk 0:00:05.1]} 39... Qxf4+ {[%clk 0:00:58.3]} 40. Kg2 {[%clk 0:00:03.8]}
40... Bxe5 {[%clk 0:00:45.3]} 41. dxe5 {[%clk 0:00:03.4]} 41... Qf8 {[%clk
0:00:20.1]} 42. e6 {[%clk 0:00:01.9]} 42... Qd6 {[%clk 0:00:18.7]} 43. Qb2+
{[%clk 0:00:02.1]} 1-0

[Event "Early-Titled-Tuesday-Blitz-June-18-2024"]
[Site "Chess.com"]
[Date "2024.06.18"]
[Round "2"]
[White "Nozdrachev_Leonid"]
[Black "sokidze"]
[Result "1/2-1/2"]
[WhiteElo "2568"]
[BlackElo "2783"]
[TimeControl "180+1"]
[EndTime "8:18:48 PDT"]
[Termination "Game drawn by repetition"]

1. d4 {[%clk 0:02:58.9]} 1... d5 {[%clk 0:02:58.8]} 2. c4 {[%clk 0:02:57.8]}
2... e6 {[%clk 0:02:58.3]} 3. Nc3 {[%clk 0:02:57.6]} 3... a6 {[%clk 0:02:58.4]}
4. cxd5 {[%clk 0:02:54]} 4... exd5 {[%clk 0:02:58.4]} 5. Bf4 {[%clk 0:02:53.7]}
5... Nf6 {[%clk 0:02:58.3]} 6. e3 {[%clk 0:02:53.5]} 6... Bd6 {[%clk 0:02:58.6]}
7. Bxd6 {[%clk 0:02:48.5]} 7... Qxd6 {[%clk 0:02:58.6]} 8. Bd3 {[%clk
0:02:48.9]} 8... O-O {[%clk 0:02:58]} 9. Nge2 {[%clk 0:02:48.7]} 9... Nc6 {[%clk
0:02:55.4]} 10. h3 {[%clk 0:02:48.2]} 10... Bd7 {[%clk 0:02:54.7]} 11. O-O
{[%clk 0:02:47.5]} 11... Nb4 {[%clk 0:02:55]} 12. Bb1 {[%clk 0:02:46.6]} 12...
Bb5 {[%clk 0:02:54.6]} 13. a3 {[%clk 0:02:43.9]} 13... Bxe2 {[%clk 0:02:48.5]}
14. Nxe2 {[%clk 0:02:36.5]} 14... Nc6 {[%clk 0:02:48.6]} 15. Qd3 {[%clk
0:02:36.9]} 15... g6 {[%clk 0:02:46.1]} 16. Ba2 {[%clk 0:02:32.6]} 16... Rfe8
{[%clk 0:02:38]} 17. Nc3 {[%clk 0:02:31.5]} 17... Nd8 {[%clk 0:02:09.5]} 18.
Rfe1 {[%clk 0:02:21.1]} 18... Ne6 {[%clk 0:02:06.5]} 19. e4 {[%clk 0:02:16.8]}
19... Nf4 {[%clk 0:01:41.6]} 20. Qf3 {[%clk 0:02:14.6]} 20... dxe4 {[%clk
0:01:40.2]} 21. Nxe4 {[%clk 0:02:15.5]} 21... Nxe4 {[%clk 0:01:10.5]} 22. Rxe4
{[%clk 0:02:16.4]} 22... Rxe4 {[%clk 0:01:09.5]} 23. Qxe4 {[%clk 0:02:17.3]}
23... Qxd4 {[%clk 0:00:45.4]} 24. Qxb7 {[%clk 0:02:06.9]} 24... Rd8 {[%clk
0:00:25.3]} 25. Qxc7 {[%clk 0:02:00.5]} 25... Rd7 {[%clk 0:00:25.9]} 26. Qc8+
{[%clk 0:01:54.1]} 26... Kg7 {[%clk 0:00:25.8]} 27. Qc2 {[%clk 0:01:42]} 27...
Rb7 {[%clk 0:00:16]} 28. Rb1 {[%clk 0:01:28]} 28... Re7 {[%clk 0:00:15.9]} 29.
Rd1 {[%clk 0:01:25.6]} 29... Qf6 {[%clk 0:00:15.1]} 30. Bc4 {[%clk 0:01:17.7]}
30... Rc7 {[%clk 0:00:13.6]} 31. Qe4 {[%clk 0:01:15.2]} 31... Re7 {[%clk
0:00:10.6]} 32. Qf3 {[%clk 0:01:12.5]} 32... Qe5 {[%clk 0:00:07.3]} 33. b3
{[%clk 0:01:10.4]} 33... a5 {[%clk 0:00:04.9]} 34. h4 {[%clk 0:01:06.1]} 34...
h5 {[%clk 0:00:04.8]} 35. g3 {[%clk 0:01:05.7]} 35... Ne2+ {[%clk 0:00:05.3]}
36. Bxe2 {[%clk 0:01:03.7]} 36... Qxe2 {[%clk 0:00:06.2]} 37. Qxe2 {[%clk
0:01:04.6]} 37... Rxe2 {[%clk 0:00:07.1]} 38. Rb1 {[%clk 0:01:03.7]} 38... Ra2
{[%clk 0:00:02.5]} 39. b4 {[%clk 0:00:54.7]} 39... Rxa3 {[%clk 0:00:02.1]} 40.
b5 {[%clk 0:00:54.9]} 40... Rc3 {[%clk 0:00:02.7]} 41. Kf1 {[%clk 0:00:50.9]}
41... a4 {[%clk 0:00:01.9]} 42. Ke2 {[%clk 0:00:50.2]} 42... a3 {[%clk
0:00:01.6]} 43. Kd2 {[%clk 0:00:44.2]} 43... a2 {[%clk 0:00:02.1]} 44. Ra1
{[%clk 0:00:41.3]} 44... Rb3 {[%clk 0:00:02.8]} 45. Rxa2 {[%clk 0:00:40.7]}
45... Rxb5 {[%clk 0:00:03.4]} 46. Ke2 {[%clk 0:00:37.2]} 46... Re5+ {[%clk
0:00:03.9]} 47. Kf3 {[%clk 0:00:37]} 47... Rf5+ {[%clk 0:00:03.9]} 48. Kg2
{[%clk 0:00:37.1]} 48... Re5 {[%clk 0:00:04.4]} 49. Rd2 {[%clk 0:00:37.2]} 49...
Rf5 {[%clk 0:00:04.9]} 50. Rd3 {[%clk 0:00:37.4]} 50... Re5 {[%clk 0:00:05.3]}
51. Rf3 {[%clk 0:00:37]} 51... Re6 {[%clk 0:00:05.6]} 52. Rf4 {[%clk 0:00:37.2]}
52... Re7 {[%clk 0:00:06]} 53. Rf3 {[%clk 0:00:36.9]} 53... Re6 {[%clk
0:00:06.6]} 54. Rf4 {[%clk 0:00:37]} 54... Re7 {[%clk 0:00:07]} 55. Rf3 {[%clk
0:00:37.1]} 55... Re6 {[%clk 0:00:07.6]} 1/2-1/2

[Event "Early-Titled-Tuesday-Blitz-June-18-2024"]
[Site "Chess.com"]
[Date "2024.06.18"]
[Round "2"]
[White "NinoMaisuradze"]
[Black "Keeper0416"]
[Result "0-1"]
[WhiteElo "2355"]
[BlackElo "2546"]
[TimeControl "180+1"]
[EndTime "8:18:48 PDT"]
[Termination "Keeper0416 won by checkmate"]

1. d4 {[%clk 0:03:00.2]} 1... Nf6 {[%clk 0:02:59.3]} 2. Nf3 {[%clk 0:03:00.8]}
2... e6 {[%clk 0:02:55.1]} 3. Bf4 {[%clk 0:03:01.7]} 3... b6 {[%clk 0:02:52.5]}
4. Bc1 {[%clk 0:03:02.5]} 4... Ba6 {[%clk 0:02:43.7]} 5. e3 {[%clk 0:03:03.4]}
5... Bxf1 {[%clk 0:02:43.6]} 6. Kxf1 {[%clk 0:03:04.1]} 6... Qc8 {[%clk
0:02:41.7]} 7. Nbd2 {[%clk 0:03:04.4]} 7... Qb7 {[%clk 0:02:42.1]} 8. c4 {[%clk
0:03:04.1]} 8... c5 {[%clk 0:02:42.5]} 9. Qc2 {[%clk 0:03:03.4]} 9... Nc6 {[%clk
0:02:41.9]} 10. b3 {[%clk 0:03:03.1]} 10... Rc8 {[%clk 0:02:36.8]} 11. a3 {[%clk
0:03:00.1]} 11... d5 {[%clk 0:02:35.5]} 12. cxd5 {[%clk 0:02:54.9]} 12... Nxd5
{[%clk 0:02:27.8]} 13. dxc5 {[%clk 0:02:54]} 13... Bxc5 {[%clk 0:02:25.7]} 14.
Bb2 {[%clk 0:02:53.4]} 14... O-O {[%clk 0:02:22.1]} 15. Rc1 {[%clk 0:02:52.4]}
15... Bxe3 {[%clk 0:02:20.3]} 16. Bxg7 {[%clk 0:02:41.2]} 16... Nd4 {[%clk
0:01:32.6]} 17. Qb2 {[%clk 0:02:23.3]} 17... Rxc1+ {[%clk 0:01:23.6]} 18. Qxc1
{[%clk 0:02:24.2]} 18... Nxf3 {[%clk 0:00:52.9]} 19. fxe3 {[%clk 0:02:09.2]}
19... Nxd2+ {[%clk 0:00:47.2]} 20. Qxd2 {[%clk 0:02:09.6]} 20... Kxg7 {[%clk
0:00:45.8]} 21. Qd4+ {[%clk 0:02:07.7]} 21... Nf6 {[%clk 0:00:39.8]} 22. Kf2
{[%clk 0:02:00.5]} 22... Qe4 {[%clk 0:00:37.5]} 23. Qc3 {[%clk 0:01:28.6]} 23...
Rd8 {[%clk 0:00:30.6]} 24. Rf1 {[%clk 0:01:24.3]} 24... Rd3 {[%clk 0:00:28.2]}
25. Qc1 {[%clk 0:01:18.3]} 25... Ng4+ {[%clk 0:00:26]} 26. Kg1 {[%clk
0:01:18.3]} 26... Qxe3+ {[%clk 0:00:25.6]} 27. Qxe3 {[%clk 0:01:15.2]} 27...
Rxe3 {[%clk 0:00:24.8]} 28. h3 {[%clk 0:01:13.8]} 28... Nf6 {[%clk 0:00:22.7]}
29. Rb1 {[%clk 0:01:09.7]} 29... Nd5 {[%clk 0:00:22.4]} 30. Kf2 {[%clk
0:01:09.6]} 30... Rd3 {[%clk 0:00:20.8]} 31. Rb2 {[%clk 0:01:09.7]} 31... e5
{[%clk 0:00:20]} 32. a4 {[%clk 0:01:09.7]} 32... a5 {[%clk 0:00:19.7]} 33. Re2
{[%clk 0:01:06.1]} 33... Kf6 {[%clk 0:00:18.7]} 34. Rb2 {[%clk 0:01:05.5]} 34...
e4 {[%clk 0:00:18.9]} 35. Ke2 {[%clk 0:01:04.8]} 35... Ke5 {[%clk 0:00:19.2]}
36. h4 {[%clk 0:01:03.5]} 36... f5 {[%clk 0:00:18.5]} 37. h5 {[%clk 0:01:03.2]}
37... f4 {[%clk 0:00:16.8]} 38. h6 {[%clk 0:01:03.3]} 38... Kd4 {[%clk
0:00:16.1]} 39. Rc2 {[%clk 0:01:01.2]} 39... Nc3+ {[%clk 0:00:15]} 40. Ke1
{[%clk 0:00:50.7]} 40... e3 {[%clk 0:00:13.7]} 41. Rc1 {[%clk 0:00:49.8]} 41...
Ke4 {[%clk 0:00:12.9]} 42. Kf1 {[%clk 0:00:42.2]} 42... f3 {[%clk 0:00:12.6]}
43. gxf3+ {[%clk 0:00:40.5]} 43... Kxf3 {[%clk 0:00:13.5]} 44. Kg1 {[%clk
0:00:26.5]} 44... Ne2+ {[%clk 0:00:11.9]} 45. Kh2 {[%clk 0:00:25.4]} 45... Nxc1
{[%clk 0:00:11]} 46. b4 {[%clk 0:00:25.5]} 46... Rd4 {[%clk 0:00:10.7]} 47. b5
{[%clk 0:00:25.5]} 47... Rh4+ {[%clk 0:00:10.2]} 48. Kg1 {[%clk 0:00:26]} 48...
Ne2+ {[%clk 0:00:10.7]} 49. Kf1 {[%clk 0:00:25.4]} 49... Ng3+ {[%clk 0:00:11.4]}
50. Kg1 {[%clk 0:00:24.2]} 50... Rh1# {[%clk 0:00:12.3]} 0-1